bitfinex/quotes_BTCUSD_20250215
["timestamp","ask_amount","ask_price","bid_price","bid_amount"]
[1739642914214,0.00066233,97512.0,97511.0,0.160828]
[1739642914799,0.00066233,97512.0,97511.0,0.153828]
[1739642915020,0.00066233,97512.0,97511.0,0.166828]
[1739642915447,0.00066233,97512.0,97511.0,0.159828]
[1739642915599,0.00066233,97512.0,97511.0,0.165828]
[1739642915948,0.00066233,97512.0,97511.0,0.172828]
[1739642916471,0.00066233,97512.0,97511.0,0.165828]
[1739642916622,0.00066233,97512.0,97511.0,0.172828]
[1739642917290,0.00066233,97512.0,97511.0,0.160828]
[1739642917615,0.00066233,97512.0,97511.0,0.166828]
[1739642917912,0.00066233,97512.0,97511.0,0.153828]
[1739642918123,0.00066233,97512.0,97511.0,0.158828]
[1739642918320,0.00066233,97512.0,97511.0,0.165828]
[1739642918793,0.00066233,97512.0,97511.0,0.158828]
[1739642919002,0.00066233,97512.0,97511.0,0.153828]
[1739642919285,0.00066233,97512.0,97511.0,0.165828]
[1739642919692,0.00066233,97512.0,97511.0,0.158828]
[1739642919905,0.00066233,97512.0,97511.0,0.165828]
[1739642920669,0.00066233,97512.0,97511.0,0.160828]
[1739642920878,0.00066233,97512.0,97511.0,0.165828]
[1739642921260,0.00066233,97512.0,97511.0,0.153828]
[1739642921414,0.00066233,97512.0,97511.0,0.165828]
[1739642922121,0.00066233,97512.0,97511.0,0.158828]
[1739642922307,0.00066233,97512.0,97511.0,0.165828]
[1739642930323,0.00066233,97512.0,97511.0,0.397528]
[1739642931679,0.00066233,97512.0,97511.0,0.385528]
[1739642931883,0.00066233,97512.0,97511.0,0.392528]
[1739642932096,0.00066233,97512.0,97511.0,0.399528]
[1739642933555,0.00066233,97512.0,97511.0,0.392528]
[1739642934438,0.00066233,97512.0,97511.0,0.399528]
[1739642934589,0.00066233,97512.0,97511.0,0.392528]
[1739642934794,0.00066233,97512.0,97511.0,0.399528]
[1739642935777,0.00066233,97512.0,97511.0,0.444528]
[1739642938176,0.00066233,97512.0,97511.0,0.430528]
[1739642938586,0.00066233,97512.0,97511.0,0.437528]
[1739642938786,0.00066233,97512.0,97511.0,0.430528]
[1739642938985,0.00066233,97512.0,97511.0,0.444528]
[1739642940192,0.00066233,97512.0,97511.0,0.437528]
[1739642940576,0.00066233,97512.0,97511.0,0.444528]
[1739642977020,0.00066233,97512.0,97511.0,0.362828]
[1739642982663,0.00066233,97512.0,97511.0,0.317828]
[1739642985083,0.00066233,97512.0,97511.0,0.310828]
[1739642985637,0.00066233,97512.0,97511.0,0.317828]
[1739642985818,0.00066233,97512.0,97511.0,0.160828]
[1739642986018,0.00066233,97512.0,97511.0,0.153828]
[1739642986232,0.00066233,97512.0,97511.0,0.167828]
[1739642986565,0.00066233,97512.0,97511.0,0.160828]
[1739642987565,0.00066233,97512.0,97511.0,0.167828]
[1739642990874,0.00066233,97512.0,97511.0,0.160828]
[1739642991489,0.00066233,97512.0,97511.0,0.153828]
[1739642991790,0.00066233,97512.0,97511.0,0.160828]
[1739642992225,0.00066233,97512.0,97511.0,0.153828]
[1739642992425,0.00066233,97512.0,97511.0,0.164828]
[1739642992768,0.00066233,97512.0,97511.0,0.153828]
[1739642992991,0.00066233,97512.0,97511.0,0.163828]
[1739642993190,0.00066233,97512.0,97511.0,0.159828]
[1739642993595,0.00066233,97512.0,97511.0,0.157828]
[1739642993807,0.00066233,97512.0,97511.0,0.163828]
[1739642994745,0.25699298,97512.0,97511.0,0.01]
[1739642994950,0.10316598,97512.0,97511.0,0.006]
[1739642995163,0.10316598,97512.0,97506.0,0.205114]
[1739642995365,0.00066233,97512.0,97511.0,0.008]
[1739642995676,0.15448933,97512.0,97511.0,0.008]
[1739642996120,0.15448933,97512.0,97511.0,0.005]
[1739642996331,0.15448933,97512.0,97506.0,0.158836]
[1739642996553,0.10250365,97511.0,97505.0,0.15]
[1739642996792,0.10250365,97511.0,97507.0,0.153834]
[1739642997016,0.10250365,97511.0,97506.0,0.007]
[1739642997017,0.10250365,97511.0,97509.0,0.153831]
[1739642997297,0.20511,97509.0,97506.0,0.007]
[1739642997541,0.153835,97507.0,97506.0,0.007]
[1739642997786,0.25633865,97507.0,97506.0,0.007]
[1739642998738,0.25633865,97507.0,97500.0,0.00022344]
[1739642998739,0.153844,97501.0,97500.0,0.00022344]
[1739642998978,0.25634765,97501.0,97500.0,0.00022344]
[1739643000264,0.25634765,97501.0,97500.0,0.00222344]
[1739643001929,0.25634765,97501.0,97500.0,0.00022344]
[1739643002129,0.25634765,97501.0,97500.0,0.00422344]
[1739643002336,0.25634765,97501.0,97500.0,0.00622344]
[1739643002485,0.25634765,97501.0,97500.0,0.00022344]
[1739643002874,0.25634765,97501.0,97500.0,0.00322344]
[1739643010516,0.33934765,97501.0,97500.0,0.00322344]
[1739643010715,0.38584765,97501.0,97500.0,0.00322344]
[1739643011331,0.38584765,97501.0,97500.0,0.00122344]
[1739643011744,0.38584765,97501.0,97500.0,0.00022344]
[1739643011745,0.38784765,97501.0,97500.0,0.00022344]
[1739643012056,0.38984765,97501.0,97500.0,0.00022344]
[1739643012271,0.38784765,97501.0,97500.0,0.00022344]
[1739643012835,0.38584765,97501.0,97500.0,0.00022344]
[1739643013242,0.38784765,97501.0,97500.0,0.00022344]
[1739643013830,0.40866012,97501.0,97500.0,0.00022344]
[1739643014252,0.41066012,97501.0,97500.0,0.00022344]
[1739643014589,0.40866012,97501.0,97500.0,0.00022344]
[1739643015186,0.41066012,97501.0,97500.0,0.00022344]
[1739643016553,0.73226012,97501.0,97500.0,0.00022344]
[1739643019596,0.73026012,97501.0,97500.0,0.00022344]
[1739643019976,0.73226012,97501.0,97500.0,0.00022344]
[1739643020210,0.73026012,97501.0,97500.0,0.00022344]
[1739643020603,0.73226012,97501.0,97500.0,0.00022344]
[1739643024727,0.73026012,97501.0,97500.0,0.00022344]
[1739643024911,0.72826012,97501.0,97500.0,0.00022344]
[1739643025082,0.73226012,97501.0,97500.0,0.00022344]
[1739643026540,0.72826012,97501.0,97500.0,0.00022344]
[1739643026862,0.73026012,97501.0,97500.0,0.00022344]
[1739643027070,0.73226012,97501.0,97500.0,0.00022344]
[1739643027224,0.73026012,97501.0,97500.0,0.00022344]
[1739643027629,0.73226012,97501.0,97500.0,0.00022344]
[1739643029177,0.60276012,97501.0,97500.0,0.00022344]
[1739643029704,0.60076012,97501.0,97500.0,0.00022344]
[1739643030614,0.60276012,97501.0,97500.0,0.00022344]
[1739643031375,0.59876012,97501.0,97500.0,0.00022344]
[1739643031572,0.60076012,97501.0,97500.0,0.00022344]
[1739643031785,0.60276012,97501.0,97500.0,0.00022344]
[1739643032012,0.60076012,97501.0,97500.0,0.00022344]
[1739643032220,0.6327606,97501.0,97500.0,0.00022344]
[1739643032436,0.6347606,97501.0,97500.0,0.00022344]
[1739643033603,0.6367606,97501.0,97500.0,0.00022344]
[1739643034419,0.61405463,97501.0,97500.0,0.00022344]
[1739643034651,0.61005463,97501.0,97500.0,0.00022344]
[1739643034876,0.61405463,97501.0,97500.0,0.00022344]
[1739643035529,0.61605463,97501.0,97500.0,0.00022344]
[1739643035731,0.61405463,97501.0,97500.0,0.00022344]
[1739643035935,0.61005463,97501.0,97500.0,0.00022344]
[1739643036160,0.61205463,97501.0,97500.0,0.00022344]
[1739643036776,0.153851,97497.0,97491.0,0.07501534]
[1739643036914,0.10250365,97496.0,97491.0,0.07501534]
[1739643038293,0.10350365,97496.0,97491.0,0.07501534]
[1739643039658,0.10350365,97496.0,97489.0,0.153863]
[1739643039860,0.25735565,97496.0,97489.0,0.153863]
[1739643040876,0.25635565,97496.0,97489.0,0.153863]
[1739643041105,0.25635565,97496.0,97489.0,0.154863]
[1739643042738,0.10250365,97496.0,97489.0,0.001]
[1739643043278,0.10250365,97496.0,97489.0,0.20615]
[1739643043997,0.10250365,97496.0,97491.0,0.153859]
[1739643044629,0.10250365,97496.0,97493.0,0.153856]
[1739643045287,0.10250365,97496.0,97492.0,0.153858]
[1739643045494,0.10350365,97496.0,97492.0,0.153858]
[1739643045728,0.10250365,97496.0,97493.0,0.153855]
[1739643045936,0.10350365,97496.0,97493.0,0.153855]
[1739643047098,0.10450365,97496.0,97493.0,0.153855]
[1739643047703,0.10350365,97496.0,97493.0,0.153855]
[1739643047903,0.10450365,97496.0,97493.0,0.153855]
[1739643048506,0.10550365,97496.0,97493.0,0.153855]
[1739643049987,0.10561015,97496.0,97493.0,0.153855]
[1739643050805,0.10561015,97496.0,97491.0,0.00022365]
[1739643051114,0.10561015,97496.0,97492.0,0.153857]
[1739643051653,0.10461015,97496.0,97492.0,0.153857]
[1739643051954,0.10261015,97496.0,97492.0,0.153857]
[1739643052155,0.10361015,97496.0,97492.0,0.153857]
[1739643052612,0.10461015,97496.0,97492.0,0.153857]
[1739643052820,0.10461015,97496.0,97491.0,0.00022365]
[1739643053027,0.10461015,97496.0,97492.0,0.153858]
[1739643053326,0.10461015,97496.0,97493.0,0.153856]
[1739643054351,0.10361015,97496.0,97493.0,0.153856]
[1739643054684,0.10461015,97496.0,97493.0,0.153856]
[1739643058032,0.10461015,97496.0,97491.0,0.00022365]
[1739643058339,0.10461015,97496.0,97493.0,0.153857]
[1739643058890,0.10361015,97496.0,97493.0,0.153857]
[1739643059453,0.10461015,97496.0,97493.0,0.153857]
[1739643060503,0.10361015,97496.0,97493.0,0.153857]
[1739643060683,0.10361015,97496.0,97494.0,0.153854]
[1739643060859,0.10261015,97496.0,97493.0,0.153857]
[1739643061062,0.10361015,97496.0,97493.0,0.153857]
[1739643061410,0.10461015,97496.0,97493.0,0.153857]
[1739643066211,0.10461015,97496.0,97495.0,0.429154]
[1739643066328,0.0021065,97496.0,97495.0,0.429154]
[1739643067183,0.0011065,97496.0,97495.0,0.429154]
[1739643067710,0.0011065,97496.0,97495.0,0.434154]
[1739643068278,0.0001065,97496.0,97495.0,0.434154]
[1739643068703,0.0001065,97496.0,97495.0,0.437154]
[1739643068929,0.10261015,97496.0,97495.0,0.0569]
[1739643069591,0.10261015,97496.0,97495.0,0.008]
[1739643069806,0.10261015,97496.0,97495.0,0.003]
[1739643070240,0.10261015,97496.0,97495.0,0.004]
[1739643070450,0.10389233,97496.0,97495.0,0.004]
[1739643070668,0.10389233,97496.0,97495.0,0.001]
[1739643071118,0.10389233,97496.0,97495.0,0.003]
[1739643071589,0.10261015,97496.0,97494.0,0.153855]
[1739643071824,0.10250365,97495.0,97494.0,0.153855]
[1739643072088,0.10250365,97495.0,97492.0,0.153858]
[1739643072269,0.00128217,97494.0,97492.0,0.153858]
[1739643072558,0.10250365,97493.0,97492.0,0.153858]
[1739643073918,0.10250365,97493.0,97492.0,0.156858]
[1739643075029,0.10250365,97493.0,97492.0,0.157858]
[1739643075179,0.10250365,97493.0,97492.0,0.156858]
[1739643075359,0.10250365,97493.0,97492.0,0.157858]
[1739643077815,0.10250365,97493.0,97492.0,0.238258]
[1739643081028,0.0001065,97496.0,97495.0,0.153854]
[1739643081408,0.10261015,97496.0,97495.0,0.153854]
[1739643082447,0.10261015,97496.0,97495.0,0.154854]
[1739643086183,0.10261015,97496.0,97495.0,0.17403116]
[1739643091443,0.10261015,97496.0,97495.0,0.02017716]
[1739643091444,0.25646215,97496.0,97495.0,0.02017716]
[1739643092689,0.25646215,97496.0,97495.0,0.001]
[1739643093922,0.57806215,97496.0,97495.0,0.001]
[1739643094367,0.6100772,97496.0,97495.0,0.001]
[1739643094968,0.62060369,97496.0,97495.0,0.001]
[1739643095546,0.153858,97492.0,97491.0,0.00022365]
[1739643095750,0.28965911,97492.0,97491.0,0.00022365]
[1739643095956,0.2883767,97492.0,97491.0,0.00022365]
[1739643096384,0.25636165,97492.0,97491.0,0.00022365]
[1739643097579,0.25636165,97492.0,97491.0,0.00122365]
[1739643098182,0.25636165,97492.0,97491.0,0.00022365]
[1739643098499,0.25936165,97492.0,97491.0,0.00022365]
[1739643099034,0.26036165,97492.0,97491.0,0.00022365]
[1739643099151,0.26236165,97492.0,97491.0,0.00022365]
[1739643099575,0.57996165,97492.0,97491.0,0.00022365]
[1739643100914,0.58096165,97492.0,97491.0,0.00022365]
[1739643101315,0.57996165,97492.0,97491.0,0.00022365]
[1739643101772,0.58196165,97492.0,97491.0,0.00022365]
[1739643101973,0.57996165,97492.0,97491.0,0.00022365]
[1739643103934,0.58096165,97492.0,97491.0,0.00022365]
[1739643104892,0.57996165,97492.0,97491.0,0.00022365]
[1739643105072,0.57796165,97492.0,97491.0,0.00022365]
[1739643105271,0.58196165,97492.0,97491.0,0.00022365]
[1739643108619,0.58196165,97492.0,97491.0,0.15408365]
[1739643108620,0.42810365,97492.0,97491.0,0.15408365]
[1739643109588,0.42610365,97492.0,97491.0,0.15408365]
[1739643110006,0.42410365,97492.0,97491.0,0.15408365]
[1739643110573,0.42510365,97492.0,97491.0,0.15408365]
[1739643111437,0.42410365,97492.0,97491.0,0.15408365]
[1739643111633,0.10250365,97492.0,97491.0,0.15408365]
[1739643111840,0.10250365,97492.0,97491.0,0.15508365]
[1739643112906,0.10240365,97492.0,97491.0,0.15508365]
[1739643115084,0.10240365,97492.0,97491.0,0.00122365]
[1739643115516,0.10368596,97492.0,97491.0,0.00122365]
[1739643115888,0.25754396,97492.0,97491.0,0.00122365]
[1739643116085,0.25626165,97492.0,97491.0,0.00122365]
[1739643116331,0.10240365,97492.0,97491.0,0.00122365]
[1739643116490,0.10368596,97492.0,97491.0,0.00122365]
[1739643116732,0.25754396,97492.0,97491.0,0.00122365]
[1739643116902,0.25626165,97492.0,97491.0,0.00122365]
[1739643117103,0.25626165,97492.0,97491.0,0.00022365]
[1739643118134,0.25726165,97492.0,97491.0,0.00022365]
[1739643118333,0.25626165,97492.0,97491.0,0.00022365]
[1739643119138,0.25636815,97492.0,97491.0,0.00022365]
[1739643121269,0.25736815,97492.0,97491.0,0.00022365]
[1739643121471,0.25636815,97492.0,97491.0,0.00022365]
[1739643124728,0.25736815,97492.0,97491.0,0.00022365]
[1739643125560,0.25636815,97492.0,97491.0,0.00022365]
[1739643127651,0.10251015,97492.0,97491.0,0.00022365]
[1739643129271,0.10351015,97492.0,97491.0,0.00022365]
[1739643129619,0.10351015,97492.0,97491.0,0.00022365]
[1739643130386,0.25865046,97492.0,97491.0,0.00022365]
[1739643130632,0.25736815,97492.0,97491.0,0.00022365]
[1739643131332,0.25636815,97492.0,97491.0,0.00022365]
[1739643131945,0.25736815,97492.0,97491.0,0.00022365]
[1739643132126,0.25936815,97492.0,97491.0,0.00022365]
[1739643132719,0.26136815,97492.0,97491.0,0.00022365]
[1739643132901,0.25936815,97492.0,97491.0,0.00022365]
[1739643133329,0.25836815,97492.0,97491.0,0.00022365]
[1739643133804,0.25936815,97492.0,97491.0,0.00022365]
[1739643134150,0.25836815,97492.0,97491.0,0.00022365]
[1739643134356,0.26236815,97492.0,97491.0,0.00022365]
[1739643141927,0.29439945,97492.0,97491.0,0.00022365]
[1739643147228,0.61599945,97492.0,97491.0,0.00022365]
[1739643148263,0.69419945,97492.0,97491.0,0.00022365]
[1739643148476,0.74299945,97492.0,97491.0,0.00022365]
[1739643149148,0.74099945,97492.0,97491.0,0.00022365]
[1739643149529,0.74299945,97492.0,97491.0,0.00022365]
[1739643150130,0.74099945,97492.0,97491.0,0.00022365]
[1739643150310,0.73899945,97492.0,97491.0,0.00022365]
[1739643150513,0.74099945,97492.0,97491.0,0.00022365]
[1739643150866,0.73899945,97492.0,97491.0,0.00022365]
[1739643151088,0.74199945,97492.0,97491.0,0.00022365]
[1739643154909,0.73899945,97492.0,97491.0,0.00022365]
[1739643155147,0.74299945,97492.0,97491.0,0.00122365]
[1739643155306,0.74099945,97492.0,97491.0,0.00122365]
[1739643155896,0.74799945,97492.0,97491.0,0.00222365]
[1739643158070,0.69919945,97492.0,97491.0,0.00222365]
[1739643158274,0.62099945,97492.0,97491.0,0.00222365]
[1739643231066,0.78099945,97492.0,97491.0,0.00222365]
[1739643231244,0.79099945,97492.0,97491.0,0.00222365]
[1739643231879,0.78399945,97492.0,97491.0,0.00122365]
[1739643232363,0.80699945,97492.0,97491.0,0.00122365]
[1739643233419,0.81399945,97492.0,97491.0,0.00122365]
[1739643233622,0.80999945,97492.0,97491.0,0.00022365]
[1739643233824,0.80299945,97492.0,97491.0,0.00022365]
[1739643234005,0.80999945,97492.0,97491.0,0.00022365]
[1739643234244,0.81699945,97492.0,97491.0,0.00122365]
[1739643234468,0.81699945,97492.0,97491.0,0.00022365]
[1739643234469,0.80999945,97492.0,97491.0,0.00022365]
[1739643234644,0.81699945,97492.0,97491.0,0.00022365]
[1739643243737,0.80699945,97492.0,97491.0,0.00022365]
[1739643243936,0.81699945,97492.0,97491.0,0.00022365]
[1739643249475,0.78399945,97492.0,97491.0,0.00022365]
[1739643256881,0.62399945,97492.0,97491.0,0.00022365]
[1739643262760,0.59196815,97492.0,97491.0,0.00022365]
[1739643287906,0.62399288,97492.0,97491.0,0.00022365]
[1739643288427,0.59196815,97492.0,97491.0,0.00022365]
[1739643288552,0.62399837,97492.0,97491.0,0.00022365]
[1739643291608,0.61699837,97492.0,97491.0,0.00022365]
[1739643291852,0.62399837,97492.0,97491.0,0.00122365]
[1739643292495,0.61699837,97492.0,97491.0,0.00122365]
[1739643292835,0.62399837,97492.0,97491.0,0.00222365]
[1739643294695,0.47014037,97492.0,97491.0,0.00222365]
[1739643296035,0.62399837,97492.0,97491.0,0.00222365]
[1739643296885,0.47014037,97492.0,97491.0,0.00222365]
[1739643297091,0.43811015,97492.0,97491.0,0.00222365]
[1739643298128,0.43811015,97492.0,97491.0,0.15608365]
[1739643298335,0.43811015,97492.0,97491.0,0.00222365]
[1739643300420,0.59196815,97492.0,97491.0,0.00222365]
[1739643300648,0.43811015,97492.0,97491.0,0.00222365]
[1739643302763,0.59196815,97492.0,97491.0,0.00222365]
[1739643304407,0.62401024,97492.0,97491.0,0.00222365]
[1739643305506,0.61001024,97492.0,97491.0,0.00022365]
[1739643305919,0.61701024,97492.0,97491.0,0.00122365]
[1739643306575,0.61001024,97492.0,97491.0,0.00022365]
[1739643307078,0.61701024,97492.0,97491.0,0.00022365]
[1739643307279,0.61001024,97492.0,97491.0,0.00022365]
[1739643307770,0.62401024,97492.0,97491.0,0.00022365]
[1739643320759,0.77401024,97492.0,97491.0,0.00022365]
[1739643363126,0.78401024,97492.0,97491.0,0.00022365]
[1739643363332,0.87571024,97492.0,97491.0,0.00022365]
[1739643363961,0.86871024,97492.0,97491.0,0.00022365]
[1739643364361,0.87571024,97492.0,97491.0,0.00022365]
[1739643364798,0.86871024,97492.0,97491.0,0.00022365]
[1739643365214,0.87571024,97492.0,97491.0,0.00022365]
[1739643365453,0.86871024,97492.0,97491.0,0.00022365]
[1739643365624,0.87571024,97492.0,97491.0,0.00022365]
[1739643366051,0.91721024,97492.0,97491.0,0.00022365]
[1739643366249,0.92421024,97492.0,97491.0,0.00022365]
[1739643366460,0.91721024,97492.0,97491.0,0.00022365]
[1739643366637,0.94721024,97492.0,97491.0,6.5e-07]
[1739643367375,0.94021024,97492.0,97491.0,6.5e-07]
[1739643367821,0.94721024,97492.0,97491.0,6.5e-07]
[1739643368283,0.94021024,97492.0,97491.0,6.5e-07]
[1739643369117,0.93321024,97492.0,97491.0,6.5e-07]
[1739643369322,0.94021024,97492.0,97491.0,6.5e-07]
[1739643369945,0.94721024,97492.0,97491.0,6.5e-07]
[1739643370584,1.04971389,97492.0,97491.0,6.5e-07]
[1739643370806,0.94721024,97492.0,97491.0,6.5e-07]
[1739643388079,0.89871024,97492.0,97491.0,6.5e-07]
[1739643388276,0.81701024,97492.0,97491.0,6.5e-07]
[1739643409729,0.92501024,97492.0,97491.0,6.5e-07]
[1739643409881,0.81701024,97492.0,97491.0,6.5e-07]
[1739643416943,0.80701024,97492.0,97491.0,6.5e-07]
[1739643417099,0.81701024,97492.0,97491.0,6.5e-07]
[1739643436825,0.91951389,97492.0,97491.0,6.5e-07]
[1739643437646,0.91251389,97492.0,97491.0,6.5e-07]
[1739643437872,0.313888,97473.0,97472.0,0.0009876]
[1739643438085,0.303909,97460.0,97459.0,0.00022365]
[1739643438287,0.15,97459.0,97453.0,0.0833]
[1739643438502,0.25642165,97454.0,97453.0,0.0833]
[1739643438701,0.28846374,97454.0,97453.0,0.0833]
[1739643440236,0.29546374,97454.0,97453.0,0.0833]
[1739643440654,0.153945,97437.0,97436.0,0.0833]
[1739643440857,0.57804865,97437.0,97436.0,0.083381]
[1739643441080,0.57804865,97437.0,97436.0,0.128981]
[1739643441479,0.61005413,97437.0,97436.0,0.128981]
[1739643441707,0.57804865,97437.0,97436.0,0.128981]
[1739643441917,0.61003867,97437.0,97436.0,0.128981]
[1739643442533,0.57804865,97437.0,97436.0,0.128981]
[1739643443595,0.57904865,97437.0,97436.0,0.128981]
[1739643444205,0.57904865,97437.0,97436.0,0.12920465]
[1739643444408,0.59857778,97437.0,97436.0,0.12920465]
[1739643444583,0.59957778,97437.0,97436.0,0.12920465]
[1739643446000,0.60057778,97437.0,97436.0,0.12920465]
[1739643446503,0.59857778,97437.0,97436.0,0.12920465]
[1739643446651,0.60157778,97437.0,97436.0,0.12920465]
[1739643448103,0.60057778,97437.0,97436.0,0.12920465]
[1739643448327,0.75757778,97437.0,97436.0,0.00030465]
[1739643448887,0.75057778,97437.0,97436.0,0.00030465]
[1739643449087,0.75557778,97437.0,97436.0,0.00030465]
[1739643449536,0.76257778,97437.0,97436.0,0.00030465]
[1739643450142,0.75557778,97437.0,97436.0,0.00030465]
[1739643450602,0.76257778,97437.0,97436.0,0.00030465]
[1739643458461,0.76257778,97437.0,97436.0,0.07950465]
[1739643459169,0.75557778,97437.0,97436.0,0.07950465]
[1739643459982,0.74857778,97437.0,97436.0,0.07950465]
[1739643460133,0.75557778,97437.0,97436.0,0.07950465]
[1739643460334,0.76257778,97437.0,97436.0,0.07950465]
[1739643461259,0.76257778,97437.0,97436.0,0.00030465]
[1739643468093,0.75557778,97437.0,97436.0,0.00030465]
[1739643468527,0.78753709,97437.0,97436.0,0.00030465]
[1739643468750,0.79453709,97437.0,97436.0,0.00030465]
[1739643469791,0.78753709,97437.0,97436.0,0.00030465]
[1739643470000,0.79453709,97437.0,97436.0,0.00030465]
[1739643472797,0.80498864,97437.0,97436.0,0.00030465]
[1739643478237,0.80468075,97437.0,97436.0,0.00030465]
[1739643480293,0.7942292,97437.0,97436.0,0.08300465]
[1739643480475,0.77370007,97437.0,97436.0,0.12970465]
[1739643480674,0.62370007,97437.0,97436.0,0.12970465]
[1739643481282,0.47006296,97437.0,97436.0,0.12970465]
[1739643481491,0.61700796,97437.0,97436.0,0.12970465]
[1739643481915,0.62400796,97437.0,97436.0,0.12970465]
[1739643482123,0.61000796,97437.0,97436.0,0.12970465]
[1739643482323,0.62400796,97437.0,97436.0,0.12970465]
[1739643482781,0.61700796,97437.0,97436.0,0.12970465]
[1739643483013,0.58504865,97437.0,97436.0,0.12970465]
[1739643483189,0.59204865,97437.0,97436.0,0.12970465]
[1739643483881,0.62409295,97437.0,97436.0,0.12970465]
[1739643484081,0.59204865,97437.0,97436.0,0.12970465]
[1739643498276,0.59204865,97437.0,97436.0,0.00030465]
[1739643498674,0.62406355,97437.0,97436.0,0.00030465]
[1739643505616,0.62417005,97437.0,97436.0,0.00030465]
[1739643508162,0.62417005,97437.0,97436.0,0.07540465]
[1739643510299,0.59215515,97437.0,97436.0,0.07540465]
[1739643518951,0.59215515,97437.0,97436.0,0.00030465]
[1739643523893,0.62419427,97437.0,97436.0,0.00030465]
[1739643544152,0.71639789,97437.0,97436.0,0.00030465]
[1739643544378,0.88939789,97437.0,97436.0,0.00030465]
[1739643544768,0.93819789,97437.0,97436.0,0.00030465]
[1739643545353,0.93119789,97437.0,97436.0,0.00030465]
[1739643545707,0.92419789,97437.0,97436.0,0.00030465]
[1739643546324,0.93119789,97437.0,97436.0,0.00030465]
[1739643546721,0.93819789,97437.0,97436.0,0.00030465]
[1739643546944,0.93119789,97437.0,97436.0,0.00030465]
[1739643547146,0.92419789,97437.0,97436.0,0.00030465]
[1739643547596,0.93119789,97437.0,97436.0,0.00030465]
[1739643548520,0.84599427,97437.0,97436.0,0.00030465]
[1739643552594,0.79719427,97437.0,97436.0,0.00030465]
[1739643552995,0.76719427,97437.0,97436.0,0.00030465]
[1739643553197,0.77419427,97437.0,97436.0,0.00030465]
[1739643553400,0.76719427,97437.0,97436.0,0.00030465]
[1739643553568,0.77419427,97437.0,97436.0,0.00030465]
[1739643554340,0.76719427,97437.0,97436.0,0.00030465]
[1739643554675,0.77419427,97437.0,97436.0,0.00030465]
[1739643555036,0.76719427,97437.0,97436.0,0.00030465]
[1739643555188,0.77419427,97437.0,97436.0,0.00030465]
[1739643569034,0.62419427,97437.0,97436.0,0.00030465]
[1739643591231,0.62419427,97437.0,97436.0,0.07970465]
[1739643591923,0.61719427,97437.0,97436.0,0.07970465]
[1739643592079,0.61019427,97437.0,97436.0,0.07970465]
[1739643592288,0.61719427,97437.0,97436.0,0.07970465]
[1739643592490,0.62419427,97437.0,97436.0,0.07970465]
[1739643592694,0.61019427,97437.0,97436.0,0.07970465]
[1739643593098,0.61719427,97437.0,97436.0,0.07970465]
[1739643593949,0.62419427,97437.0,97436.0,0.07970465]
[1739643596865,0.62419427,97437.0,97436.0,0.00030465]
[1739643607522,0.47024927,97437.0,97436.0,0.00030465]
[1739643607728,0.43821015,97437.0,97436.0,0.28405165]
[1739643608859,0.43121015,97437.0,97436.0,0.28405165]
[1739643609062,0.43321015,97437.0,97436.0,0.28405165]
[1739643609415,0.42621015,97437.0,97436.0,0.28405165]
[1739643609706,0.43321015,97437.0,97436.0,0.28405165]
[1739643610661,0.42621015,97437.0,97436.0,0.28405165]
[1739643611106,0.42521015,97437.0,97436.0,0.28405165]
[1739643611311,0.42621015,97437.0,97436.0,0.28405165]
[1739643612412,0.42521015,97437.0,97436.0,0.28405165]
[1739643622150,0.42421015,97437.0,97436.0,0.28405165]
[1739643622467,0.42421015,97437.0,97436.0,0.28705165]
[1739643622673,0.10261015,97437.0,97436.0,0.28705165]
[1739643622999,0.10261015,97437.0,97436.0,0.28505165]
[1739643623293,0.10261015,97437.0,97436.0,0.28705165]
[1739643623798,0.10261015,97437.0,97436.0,0.28605165]
[1739643624024,0.10261015,97437.0,97436.0,0.28705165]
[1739643630794,0.10261015,97437.0,97436.0,0.28705165]
[1739643632458,0.10261015,97437.0,97436.0,0.28505165]
[1739643633007,0.10361015,97437.0,97436.0,0.28705165]
[1739643633448,0.10261015,97437.0,97436.0,0.28505165]
[1739643634381,0.10261015,97437.0,97436.0,0.28405165]
[1739643634789,0.10361015,97437.0,97436.0,0.28805165]
[1739643634994,0.10461015,97437.0,97436.0,0.29205165]
[1739643635189,0.0011065,97437.0,97436.0,0.28805165]
[1739643635592,0.0011065,97437.0,97436.0,0.29305165]
[1739643640232,0.0011065,97437.0,97436.0,0.44305165]
[1739643642216,0.0011065,97437.0,97436.0,0.46605165]
[1739643668112,5e-07,97437.0,97436.0,0.46605165]
[1739643669362,5e-07,97437.0,97436.0,0.47105165]
[1739643669566,5e-07,97437.0,97436.0,0.46105165]
[1739643669777,5e-07,97437.0,97436.0,0.48105165]
[1739643669978,5e-07,97437.0,97436.0,0.48805165]
[1739643670226,5e-07,97437.0,97436.0,0.5905553]
[1739643670441,5e-07,97437.0,97436.0,0.6986553]
[1739643670646,0.0001065,97459.0,97458.0,0.303912]
[1739643670850,0.0001065,97459.0,97458.0,0.386612]
[1739643672309,0.0001065,97459.0,97458.0,0.389612]
[1739643672863,0.0011065,97459.0,97458.0,0.395612]
[1739643673483,0.0011065,97459.0,97458.0,0.312912]
[1739643675085,0.10361015,97459.0,97458.0,0.312912]
[1739643675709,0.10361015,97459.0,97458.0,0.009]
[1739643676171,0.18461015,97459.0,97458.0,0.009]
[1739643676595,0.33852015,97459.0,97458.0,0.009]
[1739643676803,0.33852015,97459.0,97458.0,0.06396]
[1739643677015,0.33752015,97459.0,97458.0,0.05796]
[1739643677166,0.33752015,97459.0,97458.0,0.06096]
[1739643677552,0.33752015,97459.0,97458.0,0.05796]
[1739643678166,0.33752015,97459.0,97458.0,0.05496]
[1739643679185,0.33752015,97459.0,97458.0,0.05696]
[1739643679593,0.33752015,97459.0,97458.0,0.05496]
[1739643679992,0.33752015,97459.0,97458.0,0.05596]
[1739643680400,0.33752015,97459.0,97458.0,0.05496]
[1739643681256,0.33852015,97459.0,97458.0,0.05596]
[1739643681597,0.33752015,97459.0,97458.0,0.05596]
[1739643681794,0.33752015,97459.0,97458.0,0.001]
[1739643682056,0.33852015,97459.0,97458.0,0.056]
[1739643682413,0.33752015,97459.0,97458.0,0.056]
[1739643682616,0.33852015,97459.0,97458.0,0.055]
[1739643684823,0.33752015,97459.0,97458.0,0.055]
[1739643685282,0.33952015,97459.0,97458.0,0.055]
[1739643687966,0.33752015,97459.0,97458.0,0.055]
[1739643688367,0.33952015,97459.0,97458.0,0.055]
[1739643688975,0.34052015,97459.0,97458.0,0.055]
[1739643698628,0.18661015,97459.0,97435.0,0.00022365]
[1739643698841,0.09271145,97450.0,97437.0,0.20548365]
[1739643699034,0.25642965,97449.0,97439.0,0.1549368]
[1739643699247,0.15393,97447.0,97440.0,0.153939]
[1739643699496,0.10250365,97446.0,97441.0,0.153938]
[1739643702101,0.10250365,97446.0,97440.0,0.003]